Cogmind - Beta 17.1 @@@ ROGUE MODE // 2026.09.01 @ 02:27:44 Player: 4R-ZE3 Result: Destroyed by NC-16S(x) with Makeshift Spear Performance ------------- Evolutions (0) 0 Regions Visited (3) 600 Robots Destroyed (38) 190 Value Destroyed (1227) 1227 Prototype IDs (17) 340 Alien Tech Used (0) 0 Bonus (957) 957 TOTAL SCORE: 3314 Bonus ------- Follower Combat Kills 157 Registered with UFD 300 Met Optimus in HQ 500 Cogmind --------- Core Integrity 0/250 Matter 265/300 Energy 300/340 System Corruption 0% Temperature Cool (47) Movement Treading (250) Ox1 Location -9/Scraptown Parts ------- > --- POWER (1) -------- Graviton Reactor > --- PROPULSION (2) --- Light Treads Spiked Treads > --- UTILITY (2) ------ Advanced Cooling System Large Storage Unit > --- WEAPON (2) ------- Subdweller Beam Cannon Subdweller Beam Cannon > --- INVENTORY (15) --- Improved Ion Engine Light Angular Momentum Engine Improved Treads Improved Treads Spiked Treads Advanced Weapon Cycler Improved Medium Armor Plating Powered Cannon Autogun Subdweller Machine Gun Minigun Helical Railgun Rocket Launcher Peak State ------------ > --- POWER ------------ Graviton Reactor > --- PROPULSION ------- Light Treads Spiked Treads > --- UTILITY ---------- Large Storage Unit Advanced Weapon Cycler > --- WEAPON ----------- Subdweller Beam Cannon Subdweller Beam Cannon > --- INVENTORY -------- Improved Ion Engine Light Angular Momentum Engine Improved Treads Improved Treads Spiked Treads Improved Medium Armor Plating Particle Cannon Subdweller Beam Cannon Powered Cannon Autogun Subdweller Machine Gun Minigun Helical Railgun Rocket Launcher [Rating: 30] Favorites ----------- Power Ion Engine Engine Ion Engine Reactor Graviton Reactor Propulsion Light Treads Treads Light Treads Utility Large Storage Unit Device Improved Heat Sink Storage Large Storage Unit Protection Makeshift Light Armor Plating Weapon Subdweller Beam Cannon Energy Gun Medium Laser Energy Cannon Subdweller Beam Cannon Ballistic Gun Subdweller Machine Gun Launcher Rocket Launcher Build | -11 -10 -10 -9 ------- Run | Yrd Mat Sub Scr Slots Evolved . | . . . . Power . | . . . . Propulsion . | . . . . Utility . | . . . . Weapon . | . . . . Parts Attached 34 | 6 9 8 11 Power 7 | 1 1 1 4 Engine 6 | 1 1 1 3 Core . | . . . . Reactor 1 | . . . 1 Propulsion 5 | 2 . 3 . Treads 5 | 2 . 3 . Leg . | . . . . Wheel . | . . . . Hover . | . . . . Flight . | . . . . Utility 11 | 1 4 1 5 Device 6 | . 2 . 4 Storage 2 | 1 1 . . Processor . | . . . . Hackware . | . . . . Protection 3 | . 1 1 1 Artifact . | . . . . Weapon 11 | 2 4 3 2 Energy Gun 2 | 2 . . . Energy Cannon 5 | . 2 2 1 Ballistic Gun 2 | . 1 1 . Ballistic Cannon . | . . . . Launcher 2 | . 1 . 1 Special Weapon . | . . . . Impact Weapon . | . . . . Slashing Weapon . | . . . . Piercing Weapon . | . . . . Special Melee Weapon . | . . . . Unidentified Prototypes 2 | . . . 2 Parts Lost 5 | . 1 3 1 Power . | . . . . Propulsion 3 | . . 3 . Utility 1 | . 1 . . Weapon 1 | . . . 1 Highest Loss Streak 2 | . 1 2 1 To Critical Strikes . | . . . . Average Backups 12 | 1 10 14 12 Power 1 | . 1 1 1 Propulsion 1 | . . . 2 Utility . | . . . 1 Weapon 8 | . 7 11 7 Tool/Special . | . . . . Unused Backups 43 | . 2 6 35 Power 5 | . . . 5 Propulsion 10 | . 2 . 8 Utility 8 | . . . 8 Weapon 20 | . . 6 14 Tool/Special . | . . . . Average Slot Usage (%) 93 | . 98 100 91 Engine 13 | . 14 14 13 Treads 28 | . 28 28 28 Device 2 | . 11 1 . Storage 14 | . 14 14 14 Protection 6 | . 1 12 5 Energy Cannon 26 | . 22 26 27 Peak Build Rating 30 | 6 12 18 30 Average Rating 14 | 4 9 15 14 On Entrance 8 | . 6 11 18 Avg Prop Armor Cover (%) . | . . . . Naked Turns . | . . . . Heaviest Build 53 | 11 34 45 53 Greatest Support 40 | 40 40 40 40 Greatest Overweight (x) 1 | . . 1 1 Average Overweight (x) . | . . . . Largest Inventory Capacity 15 | 8 15 15 15 Average Capacity 14 | 6 12 15 15 Most Carried 15 | 4 14 15 15 Average Carried 13 | 1 10 14 13 Final Capacity 15 | 8 15 15 15 Final Carried 15 | 4 14 15 14 Class Distribution -------------------- 98% | Mutant Dominant Class ---------------- Mutant | -10/Materials Mutant | -10/Subcaves Mutant | -9/Scraptown Resources | -11 -10 -10 -9 ----------- Run | Yrd Mat Sub Scr Matter Collected 593 | 223 172 96 102 Remotely . | . . . . Salvage Created 1580 | . 568 354 658 Parts 108 | . 44 30 34 Haulers Intercepted 2 | . 2 . . Recyclers Shooed . | . . . . Parts Field Recycled . | . . . . Retrieved Matter . | . . . . Parts Self-Destructed 2 | . . 2 . Prevented . | . . . . Parts Restored . | . . . . Kills | -11 -10 -10 -9 ------- Run | Yrd Mat Sub Scr Combat Hostiles Destroyed 33 | . 13 8 12 Guns 1 | . 1 . . Cannons 26 | . 9 8 9 AOE 3 | . 3 . . Classes Destroyed 12 | . 5 2 5 Worker 2 | . 2 . . Tunneler 1 | . 1 . . Hauler 2 | . 2 . . Swarmer 5 | . 5 . . Grunt 8 | . 8 . . Sentry 1 | . . 1 . Subdweller 7 | . . 7 . Federalist 2 | . . . 2 Explorer 2 | . . . 2 Ranger 1 | . . . 1 Guru 1 | . . . 1 Scrapper 5 | . . . 5 Thug 1 | . . . 1 Best Kill Streak 6 | . 4 2 6 Combat Bots Only 6 | . 3 2 6 Max Kills in Single Turn 3 | . 3 1 1 Gunslinging . | . . . . Exploded 2 | . 2 . . Melee . | . . . . Uniques/NPCs Destroyed . | . . . . Combat | -11 -10 -10 -9 -------- Run | Yrd Mat Sub Scr Hostile Shots Fired 111 | . 42 37 32 Missed 24 | . 11 6 7 Hits 87 | . 31 31 25 Melee 3 | . . . 3 Projectile 84 | . 31 31 22 Critical Strikes 3 | . . 2 1 Damage Taken 1402 | . 303 667 432 Core 260 | . 23 127 110 Absorbed by Shields . | . . . . Core Remaining (%) 100 | 100 . . . Volleys Fired 90 | . 37 24 29 Largest 2 | . 2 2 2 Hottest 160 | . 120 160 160 Shots Fired 171 | . 72 45 54 Gun 16 | . 12 4 . Cannon 151 | . 58 41 52 Launcher 4 | . 2 . 2 Special . | . . . . Kinetic 10 | . 6 4 . Thermal 157 | . 64 41 52 Explosive 4 | . 2 . 2 Electromagnetic . | . . . . Robot Hit Streak 15 | . 10 15 4 Robot Miss Streak 5 | . 3 4 5 Penetration Max . | . . . . Secondary Targets . | . . . . Shots Hit Robots 96 | . 43 30 23 Core Hits 41 | . 21 9 11 Critical Kills 3 | . . . 3 Critical Parts Destroyed . | . . . . Critical Strikes 3 | . . . 3 Meltdown 3 | . . . 3 Melee Attacks . | . . . . Impact . | . . . . Slashing . | . . . . Piercing . | . . . . Sneak Attacks . | . . . . Combat Hostiles . | . . . . Follow-up Attacks . | . . . . Damage Inflicted 2349 | . 1108 585 656 Guns 109 | . 90 19 . Cannons 1905 | . 683 566 656 Explosions 335 | . 335 . . Melee . | . . . . Ramming . | . . . . Kinetic 59 | . 40 19 . Thermal 2048 | . 826 566 656 Explosive 242 | . 242 . . Electromagnetic . | . . . . Impact . | . . . . Slashing . | . . . . Piercing . | . . . . Highest Corruption . | . . . . Average Corruption . | . . . . Corruption Purged . | . . . . Corruption Blocked . | . . . . Overload Shots . | . . . . Overflow Damage 80 | . 55 . 25 Projectiles 25 | . . . 25 Explosions 55 | . 55 . . Melee . | . . . . Knockbacks . | . . . . Impact . | . . . . Kinetic . | . . . . Secondary . | . . . . Self-Inflicted Damage . | . . . . Shots . | . . . . Rammed . | . . . . Targets Rammed . | . . . . Kicked . | . . . . Crushed . | . . . . Highest Temperature 372 | . 263 180 372 Average Temperature 94 | . 79 58 122 Received Heat Transfer 517 | . 105 189 223 Effects 1 | . 1 . . Energy Bleed 1 | . 1 . . Siege Activations . | . . . . Martial Activations . | . . . . Shielding Activations . | . . . . Robots Disrupted . | . . . . Combat Hostiles . | . . . . Robots Corrupted . | . . . . Combat Hostiles . | . . . . Parts Fried . | . . . . Impact Corruptions . | . . . . Robots Melted 3 | . . . 3 Combat Hostiles 3 | . . . 3 Parts Melted 6 | . 1 . 5 Heat Transferred 3383 | . 1691 888 804 Parts Sabotaged . | . . . . Parts Stolen . | . . . . Parts Stripped . | . . . . Power Chain Reactions . | . . . . Alert | -11 -10 -10 -9 ------- Run | Yrd Mat Sub Scr Maximum Alert Level 1 | . 1 . . Low Security (%) 60 | 100 57 . . Level 1 39 | . 42 . . Level 2 . | . . . . Level 3 . | . . . . Level 4 . | . . . . Level 5 . | . . . . High Security . | . . . . Max Security . | . . . . Peak Influence 302 | . 302 . . Initial . | . . . . Average 142 | . 153 . . Influence Increases 558 | . 538 20 . Destroy 0b10 Robot/C 280 | . 260 20 . Destroy 0b10 Robot/NC 25 | . 25 . . Destroy Leader 54 | . 54 . . Successful Hack 19 | . 19 . . Select Force Hacks 60 | . 60 . . Disable Machine 45 | . 45 . . Destroy Structure 45 | . 45 . . Lose Combat Pursuer 30 | . 30 . . Influence Decreases 558 | . 328 230 . Entered New Map 102 | . . 102 . Time Decay 428 | . 318 110 . Lost Part 28 | . 10 18 . Squads Dispatched 4 | . 4 . . Investigation 2 | . 2 . . Extermination . | . . . . Reinforcement 2 | . 2 . . Assault . | . . . . Garrison . | . . . . Intercept . | . . . . Searches Triggered . | . . . . Construction Impeded . | . . . . Haulers Reinforced . | . . . . Active Scanning Responses . | . . . . Cargo Convoy Interrupts . | . . . . Stealth | -11 -10 -10 -9 --------- Run | Yrd Mat Sub Scr Distress Signals 3 | . 3 . . Communications Jammed . | . . . . Distress Signals . | . . . . Times Spotted 59 | . 25 8 26 Peak Tracking Total 5 | . 5 2 5 Tactical Retreats 2 | . 2 . . Traps | -11 -10 -10 -9 ------- Run | Yrd Mat Sub Scr Traps Triggered . | . . . . Indirectly . | . . . . Trap Hack Attempts . | . . . . Triggered . | . . . . Disarmed . | . . . . Reprogrammed . | . . . . Reused . | . . . . Traps Extracted . | . . . . Installed . | . . . . Triggered . | . . . . Machines | -11 -10 -10 -9 ---------- Run | Yrd Mat Sub Scr Machines Disabled 7 | . 3 1 3 Max in Single Turn 2 | . 2 1 2 Machines Repaired . | . . . . Machines Dismantled . | . . . . Machines Sabotaged . | . . . . Overloaded Fab Kills . | . . . . Hacking | -11 -10 -10 -9 --------- Run | Yrd Mat Sub Scr Machines Accessed 7 | . 4 1 2 Terminals 2 | . 2 . . Fabricators . | . . . . Repair Stations . | . . . . Recycling Units 2 | . 2 . . Scanalyzers . | . . . . Garrison Access . | . . . . Total Hacks 20 | . 7 1 12 Successful 18 | . 5 1 12 Failed 1 | . 1 . . Catastrophic . | . . . . Database Lockouts 1 | . 1 . . Manual 5 | . 5 . . Terminals 5 | . 5 . . Fabricators . | . . . . Repair Stations . | . . . . Recycling Units 2 | . 2 . . Scanalyzers . | . . . . Garrison Access . | . . . . Terminal Hacks 15 | . 2 1 12 Record 4 | . . . 4 Robot Analysis 10 | . 2 . 8 Proto ID Catalog 1 | . . 1 . Fabricator Hacks . | . . . . Repair Station Hacks . | . . . . Recycling Unit Hacks . | . . . . Scanalyzer . | . . . . Garrison Access Hacks . | . . . . Unauthorized Hacks 3 | . 3 . . Terminals 1 | . 1 . . Botnet 1 | . 1 . . Fabricators . | . . . . Repair Stations . | . . . . Recycling Units 2 | . 2 . . Tunnel 2 | . 2 . . Scanalyzers . | . . . . Garrison Access . | . . . . Data Cores Recovered . | . . . . Used . | . . . . Hacking Detections 1 | . 1 . . Full Trace Events . | . . . . Feedback Events . | . . . . Feedback Blocked . | . . . . Robot Schematics Acquired . | . . . . Robots Built . | . . . . Authchips . | . . . . Time . | . . . . Total Robot Build Rating . | . . . . Part Schematics Acquired . | . . . . Parts Built . | . . . . Authchips . | . . . . Time . | . . . . Total Part Build Rating . | . . . . Part Studies Acquired . | . . . . Parts Repaired . | . . . . Time . | . . . . Parts Recycled . | . . . . Recycled Matter . | . . . . Retrieved Matter . | . . . . Retrieved Components . | . . . . Parts Scanalyzed . | . . . . Part Schematics Acquired . | . . . . Parts Damaged . | . . . . Bothacking | -11 -10 -10 -9 ------------ Run | Yrd Mat Sub Scr Used RIF Installer . | . . . . Robots Hacked . | . . . . Non-combat . | . . . . Combat . | . . . . Robot Hacks Applied . | . . . . Relay Couplers Released . | . . . . Fabnet Peak Effective % . | . . . . Robots Rewired . | . . . . Allies Hacked . | . . . . Hacks Repelled . | . . . . Allies | -11 -10 -10 -9 -------- Run | Yrd Mat Sub Scr Total Allies 1 | . . . 1 Largest Group 1 | . . . 1 Highest-Rated Group 53 | . . . 53 Highest-Rated Ally 53 | . . . 53 Total Orders . | . . . . Ally Attacks 35 | . . . 35 Total Damage 732 | . . . 732 Kills 5 | . . . 5 Allies Corrupted . | . . . . Allies Melted 7 | . . . 7 Intel | -11 -10 -10 -9 ------- Run | Yrd Mat Sub Scr Active Infowar (turns) . | . . . . Robot Analysis Total 10 | . 2 . 8 Derelict Logs Recovered 7 | . . 2 5 Drone Launches . | . . . . Drone Recoveries . | . . . . Exploration | -11 -10 -10 -9 ------------- Run | Yrd Mat Sub Scr Turns Passed 7082 | 76 956 1303 4747 Spaces Moved 2853 | 46 495 492 1820 Core 9 | 9 . . . Treads 2844 | 37 495 492 1820 Legs . | . . . . Wheels . | . . . . Hover . | . . . . Flight . | . . . . Fastest Speed 50 | 50 160 160 160 Average Speed 229 | 138 160 236 249 Slowest Speed 250 | 160 160 250 250 Overloaded Moves . | . . . . Propulsion Burnouts . | . . . . Robots Hopped . | . . . . Potential Cave-ins . | . . . . Cave-ins Triggered . | . . . . Exploration Rate (%) 54 | 4 84 49 79 Regions Visited 3 Branch Regions 2 Pre-discovered Areas 3 | . 2 . 1 Known Exits Taken . | . . . . Unknown Exits Taken 3 | 1 1 1 . Scrap Searched 10 | . . 5 5 Spaces Dug . | . . . . Terrain Destroyed 53 | . 42 4 7 Melee . | . . . . Projectile 9 | . . 4 5 AOE 44 | . 42 . 2 Terrain Rammed . | . . . . Walls Destroyed . | . . . . Machines Disabled . | . . . . Actions | -11 -10 -10 -9 --------- Run | Yrd Mat Sub Scr Total 3225 | 55 585 591 1994 Wait 117 | . 27 38 52 Move 2850 | 45 494 491 1820 Hop . | . . . . Pick Up 66 | 4 12 14 36 Fast Attach 17 | 6 3 3 5 Attach 5 | . . 3 2 Detach 1 | . . . 1 Swap 15 | . 7 3 5 Drop 64 | . 5 15 44 Fire 90 | . 37 24 29 Melee . | . . . . Ram . | . . . . Kick . | . . . . Crush . | . . . . Escape Stasis . | . . . . Rewire . | . . . . Trap . | . . . . Miscellaneous . | . . . . Route ------- -11/Scrapyard -10/Materials (discovered 3 exits: [*Mat x2] / *Sub) -10/Subcaves (discovered 3 exits: *Mat x2 / *Scr) -9/Scraptown (discovered 2 exits: *Fac x2) History --------- Turn | Location | Event 20 | -11/Scrapyard | Discovered new exit (range 14) 77 | -11/Scrapyard | Entered Materials 314 | -10/Materials | Build established: Mutant 603 | -10/Materials | Discovered new exit (range 7) 715 | -10/Materials | Discovered new exit (range 15) 755 | -10/Materials | Central database locked down 904 | -10/Materials | Discovered new exit (range 11) 1033 | -10/Materials | Entered Subcaves 1034 | -10/Subcaves | Approached by a straggling Scientist 1035 | -10/Subcaves | Learned Materials interactive machine intel 1054 | -10/Subcaves | Identified exit to Materials 1101 | -10/Subcaves | Disturbed a concealed Subdweller 1144 | -10/Subcaves | Core integrity fell below 50% 1164 | -10/Subcaves | Shifting Twisted Machinery released Sub. Power Source 1201 | -10/Subcaves | Shifting Twisted Machinery released Sub. Beam Cannon 1259 | -10/Subcaves | Discovered exit to Materials (range 13) 1692 | -10/Subcaves | Visited 4L-MR0's lab 1731 | -10/Subcaves | Found Powered Cannon 2130 | -10/Subcaves | Scientist uncovered a shortcut to Scraptown 2336 | -10/Subcaves | Entered Scraptown 2534 | -9/Scraptown | Scanned Subdweller tech in exchange for log data 2539 | -9/Scraptown | Learned Research security intel 2541 | -9/Scraptown | Learned location of Armory (-3) 2544 | -9/Scraptown | Learned Factory stockpile data 2546 | -9/Scraptown | Learned 8 Research zone layouts 2549 | -9/Scraptown | Learned location of 1 exit from Factory 2669 | -9/Scraptown | Heard Great Nut preacher, LISTEN AND RECITE! 2726 | -9/Scraptown | Visited Fellowship of the Rings 2766 | -9/Scraptown | Visited Shadow of the Wyrm 2826 | -9/Scraptown | Visited UFD Registry 2826 | -9/Scraptown | Registered with UFD as "Technoguard" 2881 | -9/Scraptown | Visited Botcube Research 2916 | -9/Scraptown | Visited LU-1G1's Boring Crew 2951 | -9/Scraptown | Visited DA-N13 Charitable Foundation 2961 | -9/Scraptown | Found DCF Scrap (30 items) 3209 | -9/Scraptown | Visited Scrapoid Pod Storage 3241 | -9/Scraptown | Visited Junk Repository 3301 | -9/Scraptown | Visited Abandonware Association 3326 | -9/Scraptown | Learned abandonware demo "HACKBUD.EXE" 3326 | -9/Scraptown | Learned abandonware demo "SHUTEYE.EXE" 3386 | -9/Scraptown | Visited Analyses Database 3456 | -9/Scraptown | Visited Curators Association 3536 | -9/Scraptown | Visited Cartography Club 3724 | -9/Scraptown | Found Botcube 4863 | -9/Scraptown | Botcube activated 4885 | -9/Scraptown | Botcube completed mutation into treaded form, armed with 2 guns 5526 | -9/Scraptown | Discovered new exit (range 13) 5681 | -9/Scraptown | Visited Spacefarers 5731 | -9/Scraptown | Visited Cyclists 6440 | -9/Scraptown | Met Optimus 6440 | -9/Scraptown | Accepted into 0bPrime 6716 | -9/Scraptown | Civil war broke out across Scraptown 6790 | -9/Scraptown | Identified exit to Factory 6797 | -9/Scraptown | Lost 3 allies 6909 | -9/Scraptown | Optimus destroyed in the chaos of civil war 6988 | -9/Scraptown | Lost 5 allies 7042 | -9/Scraptown | Lost 3 allies 7083 | -9/Scraptown | Core integrity fell below 20% 7083 | -9/Scraptown | Destroyed by NC-16S(x) with Makeshift Spear Last Messages --------------- 07032_ Slug penetrates 04-06S(j). 07032_ *subdweller at home overheating. 07038_ Ovr. Pulse Rifle melted. 07038_ 04-06S(j) destroyed. 07041_ Acquired 10 matter. 07045_ *subdweller at home collects matter. 07048_ Dropped Imp. Heat Sink. 07049_ Acquired Adv. Weapon Cycler. 07055_ Dropped Particle Cannon. 07056_ Acquired Prototype Protection. 07056_ Identified Exp. Power Shielding. 07058_ Dropped Exp. Power Shielding. 07066_ Acquired Adv. Cooling System. 07070_ B7-F3S(g) destroyed. 07080_ KX-97N(j) heat spikes uncontrollably. 07080_ KX-97N(j) overheating. 07081_ 45-TVU(j) cannibalizes Corrupted Ovr. Titanium Leg to repair Ovr. Titanium Leg. 07081_ Sub. Beam Cannon destroyed. 07083_ Destroyed Lgt. Ion Engine. Map ----- +----------------------------------------------------+ | ?????????????????????????????????????????????????? | | ?????????????????????????????????????????????????? | | ?????????????????????????????????????????????????? | | ?????????????????????????????????????????????????? | | ?????????????????????????????????????????????????? | | ?????????????????????##???##?????????????? ?????? | | ?????###?????????????#"###"#?????????????? ?????? | | ?????# ####???????#### "/" ####??????????? ###### | | ?????#!# !#???????#" """ "#??????????# #""""" | | ?????# # ##????????#"" !% ""#???????????# # " " | | ?????# ###??????#&" ==*"&###########?# # | | ?????# ####X#?????##"" !%!""##""""""""#?# # "# | | ?????# ## ###?????#" % * "#" X " ""#?# # "#X | | ?????# #?????##"" [ ""##" ""#?# # "## | | ?????###### ########!" !! "!##"" """#?# # """ | | ?????# ##"" !!=!""## #?# # | | ?????# #" [!!=! "# = #?# # | | ?????#######=######;###!*%#######;;# ###?# ## ### | | ???????#####%###;##;;##!%##!#[#!;;##=##### ## ### | | ???????#"" ==% "" "!%[%!!=!*%[""=% """" "" "## | | ???????#" *=! *%[*!!!=[= =[!!=!jj "## | | ???????#" = = ==*=!!%= !=%!!!=* "## | | ???????#" %! !!= ]=![[%![ [*%!%[= "## | | ?????###" ! =%!%=!!%!=!*!=! [[==[* "## | | ????##"" =% =%!! !!M*! !% %* | | ????""" [*!%=![*[=! ! @x = " """ "## | | ????"""" =%!%!%!" "== ! x """"""""""""" "## | | ????""" !!![%%[;#;[% ################"" "## | | ????"""" ===!! %&![! ##????????#"" "## | | ????""" !=!%!; /=% * X"#????????#"" "#? | | ##?#"""" =%!* ; % "" ##????????#"" "#? | | "#"#""" [[%= ; "" X"#??????###"" "#? | | """#"""" %[ ; =######### #"" "## | | "#??####" !% %% "" [!%!![ | | ##?????# !!! = "" [!%%! "## | | ######## [!!%= # " =% ######### #"" "#? | | = !!%[! *!=!%=!*# " !!"" ""#??????###"" "#? | | / ![* =%="# *""!%"" ##????????#"" "#? | | =% = *!""# ==%!=* X"?????????#"" "#? | | !! "#[%!!%! ##????????#"" "#? | | "#=### ################"" "#? | | !%/ """"""""""""""""""""""""" "## | | ! """"""""" """"""""""""""""" | | /% "## | | % * "#? | | /[== "#? | | #""""#" [ ## | | #????#" ! # | | #????#"""" """""""""" """"""""""" """""" ## | | ###????####### ########### ########### ###### #? | +----------------------------------------------------+ Best States ------------- Heat Dissipation 56 Energy Generation 29 Energy Capacity 340 Matter Stores 300 Matter Capacity 300 Sight Range 16 Terrain Scan Density 10 Armor Coverage 150 Weapon Cycling 25 Evasion (%) 40 Recoil Reduction 2 Item Schematics ----------------- None Robot Schematics ------------------ None Fabricated ------------ Nothing Repaired ---------- Nothing Studied --------- None Alien Tech Used ----------------- None Achievements -------------- None Challenges ------------ None Game ------ Seed PulsarCarbideScanner Manual? 0 Play Time 00:31:29 Cumulative 311.2 hours Start 2026.09.01 @ 01:56:43 End 2026.09.01 @ 02:27:44 Sessions 1 Manual Loads 0 Difficulty Rogue Special Mode None Game No. 297 Rogue 243 Adventurer 54 Explorer 0 Win Type - Total 12 Types 8/0/1/1/0/0/0/1/0/1 Lore% 78 Gallery% 67 Achievement% 61 Wizard Run 0 Options --------- Layout 1 ASCII 0 Keyboard 0 Movement Mouse Keybinds 1 Fullscreen 2 Font 32/Tamsyn Map View 50x35 Zoom Use 0% Tactical HUD 1 Map Filters NONE Filters NONE Steam 1 RUN: c7d548d6-1744-4f1c-9b6c-0c079c1fb1ee